bitfinex/quotes_SOLUSD_20250624
["timestamp","ask_amount","ask_price","bid_price","bid_amount"]
[1750787911027,3.64042723,144.96,144.94,6.54423968]
[1750787911302,3.64042723,144.96,144.95,6.54423968]
[1750787911602,32.32042723,144.96,144.92,6.54423968]
[1750787911776,25.19388854,144.95,144.91,6.54423968]
[1750787911981,25.19388854,144.95,144.9,6.54423968]
[1750787912185,18.64964886,144.95,144.91,6.54423968]
[1750787912604,2.41479232,144.94,144.92,6.54423968]
[1750787913612,2.41479232,144.94,144.91,6.54423968]
[1750787914800,2.41479232,144.94,144.92,6.54423968]
[1750787915004,2.41479232,144.94,144.93,6.54423968]
[1750787915394,2.41479232,144.94,144.92,6.54423968]
[1750787915593,2.41479232,144.94,144.93,6.54423968]
[1750787916313,2.41479232,144.94,144.92,6.54423968]
[1750787916806,1.72485166,144.94,144.92,6.54423968]
[1750787917608,1.72485166,144.94,144.91,6.54423968]
[1750787918565,1.72485166,144.94,144.87,1.5921]
[1750787918689,1.72485166,144.94,144.9,6.54423968]
[1750787920103,1.72485166,144.94,144.91,6.54423968]
[1750787921020,2.41479232,144.94,144.87,1.5921]
[1750787921307,53.85388854,144.93,144.88,6.54423968]
[1750787922124,6.54423968,144.92,144.88,6.54423968]
[1750787922518,47.30964886,144.93,144.89,6.54423968]
[1750787922710,53.85388854,144.93,144.89,6.54423968]
[1750787923239,2.41512558,144.92,144.89,6.54423968]
[1750787923400,2.41512558,144.92,144.83,1.5656]
[1750787923401,2.41512558,144.92,144.88,6.54423968]
[1750787923731,5.15139824,144.91,144.88,6.54423968]
[1750787923927,11.47139824,144.9,144.88,6.54423968]
[1750787924229,6.32,144.9,144.88,6.54423968]
[1750787924427,0.69017875,144.89,144.88,6.54423968]
[1750787924720,2.41562564,144.89,144.83,1.5656]
[1750787924890,7.56702388,144.89,144.86,6.54423968]
[1750787925622,2.41562564,144.89,144.86,6.54423968]
[1750787925919,7.56702388,144.89,144.87,6.54423968]
[1750787926516,2.41562564,144.89,144.87,6.54423968]
[1750787927122,2.41562564,144.89,144.88,6.54423968]
[1750787928511,2.41562564,144.89,144.83,1.5656]
[1750787928718,29.8307471,144.88,144.8,3.65150335]
[1750787929014,18.64964886,144.86,144.75,1.5892]
[1750787929204,18.64964886,144.84,144.79,6.54423968]
[1750787929396,6.7,144.83,144.79,6.54423968]
[1750787929601,11.85139824,144.83,144.79,6.54423968]
[1750787930416,11.85139824,144.83,144.8,6.54423968]
[1750787930608,0.69051236,144.82,144.8,6.54423968]
[1750787932420,2.41679326,144.82,144.79,6.54423968]
[1750787933123,2.41679326,144.82,144.75,1.5892]
[1750787933310,2.41679326,144.82,144.79,6.54423968]
[1750787935499,2.41679326,144.82,144.75,1.5892]
[1750787935705,2.41679326,144.82,144.79,6.54423968]
[1750787935919,2.41679326,144.82,144.78,6.54423968]
[1750787937222,8.96103294,144.82,144.75,1.5892]
[1750787937432,6.54423968,144.81,144.76,6.54423968]
[1750787938320,6.54423968,144.81,144.75,1.5892]
[1750787938529,2.41712706,144.8,144.77,6.54423968]
[1750787938904,2.41712706,144.8,144.75,1.5892]
[1750787939114,2.41712706,144.8,144.77,6.54423968]
[1750787940323,1.7262842,144.82,144.79,6.54423968]
[1750787940527,0.69051236,144.82,144.81,6.54423968]
[1750787940730,6.7,144.83,144.81,6.54423968]
[1750787941054,6.7,144.89,144.82,6.54423968]
[1750787941337,6.7,144.89,144.85,6.54423968]
[1750787941830,2.41591087,144.88,144.85,6.54423968]
[1750787942833,2.41591087,144.88,144.86,6.54423968]
[1750787943710,2.41591087,144.88,144.87,6.54423968]
[1750787945022,2.41591087,144.88,144.86,6.54423968]
[1750787946048,2.41591087,144.88,144.85,6.54423968]
[1750787946710,2.41591087,144.88,144.86,6.54423968]
[1750787947029,2.41591087,144.88,144.87,6.54423968]
[1750787950442,2.41591087,144.88,144.81,40.55667223]
[1750787950740,2.41591087,144.88,144.87,6.54423968]
[1750787952734,2.41591087,144.88,144.81,33.6511]
[1750787952935,2.41591087,144.88,144.85,6.54423968]
[1750787953641,2.41591087,144.88,144.86,6.54423968]
[1750787956079,2.41591087,144.88,144.87,6.54423968]
[1750787957045,0.69022639,144.88,144.87,6.54423968]
[1750787958627,0.68994066,144.94,144.88,6.654]
[1750787958840,2.41479232,144.94,144.88,6.654]
[1750787959051,7.53124502,144.94,144.92,6.54423968]
[1750787959223,0.68994066,144.94,144.93,6.54423968]
[1750787959731,6.37509635,144.95,144.93,8.10353968]
[1750787960046,6.37509635,144.95,144.94,6.54423968]
[1750787961223,6.37509635,144.95,144.89,18.64964886]
[1750787961224,15.33396175,144.95,144.88,8.1884]
[1750787961449,13.24423968,144.94,144.89,6.54423968]
[1750787961818,25.19388854,144.93,144.88,1.5344]
[1750787962043,6.54423968,144.92,144.87,6.54423968]
[1750787963033,2.41529225,144.91,144.87,6.54423968]
[1750787964052,8.95953193,144.91,144.86,6.54423968]
[1750787964747,8.95953193,144.91,144.83,26.0]
[1750787964948,8.95986532,144.89,144.8,1.6495]
[1750787965133,8.95986532,144.89,144.84,6.54423968]
[1750787967137,2.41595912,144.87,144.83,6.54423968]
[1750787971368,9.11595912,144.87,144.83,6.54423968]
[1750787972337,15.6601988,144.87,144.82,6.54423968]
[1750787973053,6.54423968,144.86,144.81,6.54423968]
[1750787973555,2.4162927,144.85,144.81,6.54423968]
[1750787973761,8.96053238,144.85,144.81,6.54423968]
[1750787974534,8.96053238,144.85,144.8,6.54423968]
[1750787976653,0.69027403,144.87,144.84,6.54423968]
[1750787976964,0.69017875,144.89,144.86,6.54423968]
[1750787977147,2.41546902,144.9,144.87,6.54423968]
[1750787978145,2.41546902,144.9,144.88,6.54423968]
[1750787978363,2.41546902,144.9,144.87,6.54423968]
[1750787980754,2.41546902,144.9,144.83,1.5268]
[1750787980954,2.41546902,144.9,144.87,6.54423968]
[1750787981856,7.52986586,144.9,144.87,6.54423968]
[1750787983364,5.11439684,144.89,144.87,6.54423968]
[1750787984550,0.69022639,144.88,144.87,6.54423968]
[1750787986642,5.80462323,144.88,144.87,6.54423968]
[1750787986845,0.69022639,144.88,144.87,6.54423968]
[1750787987047,5.8045919,144.89,144.87,6.54423968]
[1750787987266,0.69019506,144.89,144.88,6.54423968]
[1750787987472,5.8045919,144.89,144.88,6.54423968]
[1750787988151,0.69019506,144.89,144.88,6.54423968]
[1750787988351,5.8045919,144.89,144.88,6.54423968]
[1750787988553,0.69019506,144.89,144.88,6.54423968]
[1750787989976,0.69014805,144.9,144.88,6.54423968]
[1750787990180,12.5045035,144.91,144.89,6.54423968]
[1750787990363,12.5045035,144.91,144.9,6.54423968]
[1750787990681,6.7,144.91,144.9,6.54423968]
[1750787990981,7.3900835,144.91,144.9,6.54423968]
[1750787991274,7.3900835,144.91,144.86,6.90306435]
[1750787991449,7.3900835,144.91,144.9,6.54423968]
[1750787992261,7.3900835,144.91,144.89,6.54423968]
[1750787993180,7.3900835,144.91,144.9,6.54423968]
[1750787994280,7.3900835,144.91,144.86,6.90318471]
[1750787994485,7.3900835,144.91,144.9,6.54423968]
[1750787997186,6.7,144.91,144.9,6.54423968]
[1750788000865,0.68995825,144.94,144.9,6.54423968]
[1750788000866,5.8043375,144.94,144.9,6.54423968]
[1750788001191,42.95342884,144.94,144.89,6.54423968]
[1750788001889,5.11439684,144.93,144.89,6.54423968]
[1750788002264,0.69003588,144.92,144.89,6.54423968]
[1750788002662,2.41512558,144.92,144.88,6.54423968]
[1750788002859,2.41512558,144.92,144.85,27.5138]
[1750788002860,14.0737621,144.92,144.87,6.54423968]
[1750788003085,5.11439684,144.91,144.88,6.54423968]
[1750788003385,6.5,144.9,144.88,6.54423968]
[1750788004372,0.69017875,144.89,144.88,6.54423968]
[1750788004578,0.69017875,144.89,144.87,6.54423968]
[1750788004776,2.41562564,144.89,144.85,6.54423968]
[1750788005069,7.53002248,144.89,144.85,6.54423968]
[1750788005789,5.11439684,144.89,144.88,6.54423968]
[1750788005988,6.5,144.9,144.88,6.54423968]
[1750788006292,6.5,144.9,144.89,6.54423968]
[1750788006770,7.19013292,144.9,144.89,6.54423968]
[1750788007790,6.5,144.9,144.89,6.54423968]
[1750788008287,0.69000728,144.93,144.89,6.54423968]
[1750788008619,5.80440412,144.93,144.92,6.54423968]
[1750788008771,0.69000728,144.93,144.92,6.54423968]
[1750788008972,5.80440412,144.93,144.87,1.6161]
[1750788009167,5.11439684,144.92,144.87,1.6161]
[1750788009367,5.11439684,144.92,144.89,6.54423968]
[1750788009570,30.30828538,144.92,144.88,6.54423968]
[1750788009895,25.19388854,144.92,144.88,6.54423968]
[1750788010078,18.64964886,144.92,144.88,6.54423968]
[1750788010391,18.64964886,144.92,144.83,1.5266]
[1750788010590,25.19388854,144.92,144.88,6.54423968]
[1750788010780,2.41529225,144.91,144.89,6.54423968]
[1750788010981,1.72499223,144.93,144.9,6.54423968]
[1750788011186,1.72499223,144.93,144.91,6.54423968]
[1750788011486,6.54423968,144.93,144.89,6.54423968]
[1750788011791,5.14466506,144.92,144.89,6.54423968]
[1750788011990,5.14466506,144.92,144.9,6.54423968]
[1750788012292,5.14466506,144.92,144.91,6.54423968]
[1750788012801,8.84562365,144.94,144.91,6.54423968]
[1750788013103,8.84562365,144.94,144.92,6.54423968]
[1750788013278,8.84562365,144.94,144.93,6.54423968]
[1750788013482,2.41479232,144.94,144.93,6.54423968]
[1750788016005,2.41479232,144.94,144.92,6.54423968]
[1750788018498,2.41479232,144.94,144.93,6.54423968]
[1750788019018,2.41479232,144.94,144.89,1.6223]
[1750788019207,25.19388854,144.93,144.85,1.6019]
[1750788019385,54.03388854,144.93,144.88,6.54423968]
[1750788019584,200.23388854,144.93,144.88,6.54423968]
[1750788020494,2.41512558,144.92,144.89,6.54423968]
[1750788021418,0.69003588,144.92,144.91,6.54423968]
[1750788021792,0.69003588,144.92,144.9,6.54423968]
[1750788021996,2.41512558,144.92,144.88,6.54423968]
[1750788022299,0.69003588,144.92,144.91,6.54423968]
[1750788023592,5.8394122,144.93,144.91,6.54423968]
[1750788023804,0.69000331,144.93,144.92,6.54423968]
[1750788024110,5.8394122,144.93,144.92,6.54423968]
[1750788024324,0.69000331,144.93,144.92,6.54423968]
[1750788024483,5.8394122,144.93,144.92,6.54423968]
[1750788024683,0.69000331,144.93,144.92,6.54423968]
[1750788025008,5.8394122,144.93,144.92,6.54423968]
[1750788025321,0.69000331,144.93,144.92,6.54423968]
[1750788025500,5.8394122,144.93,144.92,6.54423968]
[1750788025810,0.69000331,144.93,144.92,6.54423968]
[1750788026014,5.14940889,144.93,144.92,6.54423968]
[1750788026320,5.83934968,144.94,144.91,1.6656]
[1750788026481,0.68994079,144.94,144.93,6.54423968]
[1750788026817,5.8386295,144.94,144.93,6.54423968]
[1750788027684,7.56348116,144.94,144.91,6.54423968]
[1750788028023,5.14868871,144.93,144.87,1.5818]
[1750788028212,5.14868871,144.92,144.89,6.54423968]
[1750788028394,5.14868871,144.91,144.89,6.54423968]
[1750788028602,5.14868871,144.93,144.89,6.54423968]
[1750788028788,5.14868871,144.92,144.89,6.54423968]
[1750788028987,5.14868871,144.91,144.89,6.54423968]
[1750788029182,5.14868871,144.9,144.88,6.54423968]
[1750788029392,6.54423968,144.92,144.88,6.54423968]
[1750788029604,2.41545893,144.9,144.87,6.54423968]
[1750788029916,5.14961767,144.89,144.88,6.54423968]
[1750788030120,5.14961767,144.89,144.87,6.54423968]
[1750788030526,11.58961767,144.89,144.87,6.54423968]
[1750788031300,6.44,144.89,144.88,6.54423968]
[1750788031694,7.13017875,144.89,144.88,6.54423968]
[1750788032790,41.8010008,144.93,144.88,6.54423968]
[1750788032791,5.15230306,144.9,144.88,6.54423968]
[1750788033008,5.15431074,144.92,144.89,8.16883968]
[1750788033217,5.15491863,144.93,144.91,6.54423968]
[1750788033395,7.06499894,144.95,144.92,6.54423968]
[1750788033593,7.06499894,144.95,144.94,6.54423968]
[1750788033801,12.22007402,144.95,144.94,6.54423968]
[1750788034819,32.59445554,144.95,144.91,6.54423968]
[1750788035019,32.59445554,144.95,144.89,1.6246]
[1750788035020,5.15507508,144.94,144.9,6.54423968]
[1750788035201,5.15507508,144.93,144.9,6.54423968]
[1750788035402,5.15507508,144.92,144.91,6.54423968]
[1750788035619,5.84511096,144.92,144.91,6.54423968]
[1750788035798,5.84511096,144.92,144.89,1.6246]
[1750788036127,5.15507508,144.91,144.89,1.6246]
[1750788036320,0.69003588,144.92,144.89,1.6246]
[1750788036523,5.15406696,144.91,144.89,1.6246]
[1750788036707,0.69003588,144.92,144.89,1.6246]
[1750788037021,5.15406131,144.91,144.89,1.6246]
[1750788037331,0.69003588,144.92,144.9,6.54423968]
[1750788037510,5.84665133,144.91,144.9,6.54423968]
[1750788038330,5.84665133,144.91,144.9,10.9114843]
[1750788038665,7.57186008,144.91,144.86,26.0]
[1750788038825,10.9114843,144.88,144.82,1.5046]
[1750788039002,16.06805213,144.87,144.82,1.5046]
[1750788039203,5.15656783,144.86,144.83,10.9114843]
[1750788039423,0.69027403,144.87,144.85,10.9114843]
[1750788039617,0.69027403,144.87,144.82,12.4160843]
[1750788039618,5.15375125,144.86,144.82,12.4160843]
[1750788039811,5.15375125,144.85,144.82,12.4160843]
[1750788040018,13.32744342,144.87,144.82,12.4160843]
[1750788040221,5.15305106,144.86,144.84,10.9114843]
[1750788040533,2.41595912,144.87,144.84,10.9114843]
[1750788040707,5.15090778,144.86,144.84,10.9114843]
[1750788040906,5.15109205,144.86,144.85,10.9114843]
[1750788041310,0.69027403,144.87,144.85,10.9114843]
[1750788041515,5.84076469,144.87,144.85,10.9114843]
[1750788042453,0.69027403,144.87,144.86,10.9114843]
[1750788042841,5.84076469,144.87,144.86,10.9114843]
[1750788043061,0.69027403,144.87,144.86,10.9114843]
[1750788046657,0.69027403,144.87,144.85,10.9114843]
[1750788046828,0.69027403,144.87,144.83,10.9114843]
[1750788046829,7.56582822,144.87,144.83,10.9114843]
[1750788047159,5.1498691,144.86,144.82,10.9114843]
[1750788047342,5.1498691,144.86,144.83,10.9114843]
[1750788047528,7.56582822,144.87,144.83,10.9114843]
[1750788047730,5.1498691,144.86,144.83,10.9114843]
[1750788048150,0.69036934,144.85,144.79,8.1698]
[1750788048354,0.69036934,144.85,144.83,10.9114843]
[1750788050844,0.69036934,144.85,144.84,10.9114843]
[1750788051553,0.69036934,144.85,144.81,26.0]
[1750788051862,0.69036934,144.85,144.84,10.9114843]
[1750788052029,0.69036934,144.85,144.82,26.0]
[1750788052234,0.69036934,144.85,144.84,10.9114843]
[1750788052554,2.41595912,144.87,144.83,10.9114843]
[1750788052854,2.41595912,144.87,144.84,10.9114843]
[1750788053062,2.41595912,144.87,144.85,10.9114843]
[1750788053237,0.69027403,144.87,144.85,10.9114843]
[1750788054164,0.69027403,144.87,144.86,10.9114843]
[1750788054856,7.53024438,144.88,144.86,10.9114843]
[1750788055053,7.53024438,144.88,144.87,10.9114843]
[1750788055231,6.84,144.88,144.87,10.9114843]
[1750788055435,0.69017875,144.89,144.87,10.9114843]
[1750788055632,0.69017875,144.89,144.88,10.9114843]
[1750788056433,0.69013112,144.9,144.88,10.9114843]
[1750788056763,0.69013112,144.9,144.89,10.9114843]
[1750788057067,0.69013112,144.9,144.88,10.9114843]
[1750788057567,0.69013112,144.9,144.89,10.9114843]
[1750788059774,6.84,144.93,144.89,10.9114843]
[1750788059946,0.69004695,144.92,144.88,26.0]
[1750788060144,0.69004695,144.92,144.91,10.9114843]
[1750788060354,0.69004695,144.92,144.91,6.54523563]
[1750788065557,11.98906874,144.93,144.91,6.54523563]
[1750788065558,7.5300071,144.93,144.91,6.54523563]
[1750788065770,7.5300071,144.93,144.92,6.54523563]
[1750788065985,0.68995604,144.94,144.92,6.54523563]
[1750788066181,12.21407109,144.95,144.93,6.54523563]
[1750788066358,7.06500235,144.95,144.94,6.54523563]
[1750788067954,0.689906,144.95,144.94,6.54523563]
[1750788068377,0.689906,144.95,144.94,10.90499654]
[1750788068878,0.689906,144.95,144.93,10.90499654]
[1750788069762,7.5637074,144.95,144.92,10.90499654]
[1750788069973,13.3196352,144.95,144.9,10.90499654]
[1750788070159,16.05406528,144.94,144.9,10.90499654]
[1750788070681,5.14906874,144.94,144.91,10.90499654]
[1750788070861,13.3196352,144.95,144.91,10.90499654]
[1750788071064,5.14906874,144.94,144.91,10.90499654]
[1750788071454,0.68998827,144.93,144.91,10.90499654]
[1750788071865,5.83905701,144.93,144.88,1.5037]
[1750788072174,0.68998827,144.93,144.91,10.90499654]
[1750788072354,7.56402768,144.93,144.9,10.90499654]
[1750788072553,2.41495894,144.93,144.9,10.90499654]
[1750788072750,5.83905701,144.93,144.92,10.90499654]
[1750788072978,0.68998827,144.93,144.92,10.90499654]
[1750788073369,0.68998827,144.93,144.88,1.5037]
[1750788073370,1.72497067,144.93,144.91,10.90499654]
[1750788074155,1.72497067,144.93,144.9,10.90499654]
[1750788074565,1.72497067,144.93,144.88,1.5037]
[1750788074794,1.72497067,144.93,144.9,10.90499654]
[1750788075478,2.41495894,144.93,144.9,10.90499654]
[1750788076779,2.41495894,144.93,144.91,10.90499654]
[1750788077082,2.41495894,144.93,144.92,10.90499654]
[1750788077583,2.41495894,144.93,144.91,10.90499654]
[1750788079366,2.41495894,144.93,144.9,10.90499654]
[1750788080183,2.41495894,144.93,144.91,10.90499654]
[1750788080385,2.41495894,144.93,144.9,10.90499654]
[1750788081291,2.41495894,144.93,144.91,10.90499654]
[1750788083474,2.41495894,144.93,144.92,10.90499654]
[1750788083773,2.41495894,144.93,144.91,10.90499654]
[1750788084380,0.68998827,144.93,144.92,10.90499654]
[1750788084565,5.82826696,144.95,144.92,10.90499654]
[1750788084766,0.68991414,144.95,144.94,10.90499654]
[1750788084984,5.82826696,144.95,144.94,10.90499654]
[1750788085194,0.68991414,144.95,144.94,10.90499654]
[1750788085382,5.82821413,144.96,144.94,10.90499654]
[1750788085569,0.68986131,144.96,144.95,10.90499654]
[1750788085981,0.68981783,144.97,144.95,10.90499654]
[1750788086195,0.68981783,144.97,144.96,10.90499654]
[1750788086405,0.68977092,144.98,144.96,10.90499654]
[1750788086583,0.68977092,144.98,144.97,10.90499654]
[1750788086781,7.58972161,144.99,144.97,10.90499654]
[1750788087101,7.58972161,144.99,144.98,10.90499654]
[1750788088383,5.13726924,145.02,144.98,6.53976472]
[1750788088695,0.68961594,145.01,144.96,13.43785892]
[1750788089196,5.13726924,145.03,144.96,13.43785892]
[1750788089497,5.82679926,145.03,144.97,32.358]
[1750788089671,0.68953002,145.03,144.97,32.358]
[1750788089871,0.68953002,145.03,145.02,6.53976472]
[1750788090399,7.58947907,145.04,145.02,6.53976472]
[1750788090591,7.58947907,145.04,145.03,6.53976472]
[1750788090896,5.13084763,145.07,145.03,6.53976472]
[1750788090897,5.82018847,145.07,145.03,6.53976472]
[1750788091097,18.09364688,145.08,145.06,6.53976472]
[1750788091270,18.09364688,145.08,145.07,6.53976472]
[1750788093098,18.09364688,145.08,145.06,6.53976472]
[1750788094309,19.81683408,145.08,145.06,10.88803378]
[1750788094480,19.81683408,145.08,145.07,10.88803378]
[1750788094970,19.81683408,145.08,145.02,26.0]
[1750788095176,19.81683408,145.08,145.06,10.88803378]
[1750788096507,18.09364688,145.08,145.07,10.88803378]
[1750788096799,17.40435234,145.08,145.07,10.88803378]
[1750788097002,0.68922743,145.09,145.07,10.88803378]
[1750788097175,0.68922743,145.09,145.08,10.88803378]
[1750788098495,0.68908489,145.12,145.08,10.88803378]
[1750788098721,0.68908489,145.12,145.1,10.88803378]
[1750788098878,0.68908489,145.12,145.11,10.88803378]
[1750788101095,0.68908489,145.12,145.06,1.5785]
[1750788101308,0.68908489,145.12,145.11,10.88803378]
[1750788104282,5.09452063,145.16,145.11,10.88803378]
[1750788104488,0.68889501,145.16,145.15,10.88803378]
[1750788104688,13.29916632,145.16,145.08,1.6217]
[1750788104908,2.41113254,145.16,145.12,10.88803378]
[1750788105112,2.41113254,145.16,145.14,10.88803378]
[1750788105412,0.68889501,145.16,145.15,10.88803378]
[1750788105586,2.41113254,145.16,145.1,26.0]
[1750788105905,2.41113254,145.16,145.13,10.88803378]
[1750788107489,2.41113254,145.16,145.14,10.88803378]
[1750788108123,2.41113254,145.16,145.1,26.0]
[1750788108285,2.41113254,145.16,145.14,10.88803378]
[1750788110894,2.41113254,145.16,145.15,10.88803378]
[1750788111096,0.68889501,145.16,145.15,10.88803378]
[1750788111607,2.41081426,145.18,145.15,10.88803378]
[1750788111805,2.41081426,145.18,145.17,10.88803378]
[1750788113420,2.41081426,145.18,145.16,10.88803378]
[1750788113605,2.41081426,145.18,145.15,10.88803378]
[1750788114024,2.41081426,145.18,145.16,10.88803378]
[1750788114819,2.41081426,145.18,145.14,1.549]
[1750788114820,2.41081426,145.18,145.17,10.88803378]
[1750788115202,0.68880011,145.18,145.17,10.88803378]
[1750788116199,2.41008604,145.23,145.17,10.88803378]
[1750788116406,2.41008604,145.23,145.21,6.52082124]
[1750788117016,0.68856296,145.23,145.22,6.52082124]
[1750788117423,0.68856296,145.23,145.2,6.52082124]
[1750788118327,2.40997038,145.23,145.15,26.0]
[1750788118620,2.40997038,145.23,145.21,6.52082124]
[1750788119330,2.40997038,145.23,145.15,26.0]
[1750788119522,2.40997038,145.23,145.14,1.549]
[1750788119719,8.93079162,145.23,145.18,6.52082124]
[1750788120102,6.52082124,145.22,145.18,6.52082124]
[1750788120304,18.64964886,145.22,145.17,6.52082124]
[1750788120611,25.1704701,145.22,145.17,6.52082124]
[1750788120799,30.23675341,145.22,145.17,6.52082124]
[1750788121000,2.41030231,145.21,145.17,6.52082124]
[1750788121614,0.6886578,145.21,145.2,6.52082124]
[1750788122323,0.6886578,145.21,145.2,10.86725122]
[1750788122504,0.6886578,145.21,145.19,10.86725122]
[1750788123002,2.41030231,145.21,145.18,10.86725122]
[1750788123414,2.41030231,145.21,145.19,10.86725122]
[1750788123629,2.41030231,145.21,145.14,27.549]
[1750788123926,2.41030231,145.21,145.17,10.86725122]
[1750788124145,13.27755353,145.21,145.14,1.549]
[1750788124339,13.27755353,145.21,145.16,10.86725122]
[1750788125014,16.72084255,145.21,145.16,10.86725122]
[1750788125219,29.51690008,145.2,145.15,10.86725122]
[1750788125431,29.51690008,145.2,145.16,10.86725122]
[1750788125636,34.58318339,145.2,145.16,10.86725122]
[1750788126244,31.71030231,145.21,145.17,10.86725122]
[1750788126444,36.77714203,145.21,145.17,10.86725122]
[1750788126620,47.64439325,145.21,145.16,10.86725122]
[1750788127641,7.47714203,145.21,145.19,10.86725122]
[1750788127820,2.41030231,145.21,145.2,10.86725122]
[1750788128026,0.6886578,145.21,145.2,10.86725122]
[1750788129225,2.40998339,145.23,145.2,10.86725122]
[1750788129424,2.40998339,145.23,145.21,10.86725122]
[1750788130526,7.47682311,145.23,145.21,10.86725122]
[1750788131350,5.06683972,145.22,145.21,10.86725122]
[1750788131554,7.47682311,145.23,145.21,10.86725122]
[1750788132247,7.47682311,145.23,145.17,26.0]
[1750788132248,7.47682311,145.23,145.22,10.86725122]
[1750788133650,5.75540268,145.23,145.22,10.86725122]
[1750788135620,5.75540268,145.23,145.2,12.37495122]
[1750788135934,5.06683972,145.22,145.2,10.86725122]
[1750788136269,5.06683972,145.21,145.2,10.86725122]
[1750788137060,5.75540307,145.23,145.2,10.86725122]
[1750788137226,5.06683972,145.23,145.22,12.37495122]
[1750788137545,0.68844972,145.26,145.22,12.37495122]
[1750788137546,5.10790354,145.25,145.22,12.37495122]
[1750788137748,6.42294103,145.27,145.23,26.0]
[1750788137749,5.10790354,145.24,145.23,26.0]
[1750788137948,5.10915808,145.26,145.23,36.86725122]
[1750788138131,5.10915808,145.29,145.23,36.86725122]
[1750788138334,13.10294103,145.3,145.23,36.86725122]
[1750788138335,5.10915808,145.28,145.24,6.2127]
[1750788138655,7.36823124,145.3,145.27,10.86725122]
[1750788138847,12.47717833,145.3,145.29,10.86725122]
[1750788139254,7.36823124,145.3,145.29,10.86725122]
[1750788139640,9.08880935,145.3,145.24,6.2127]
[1750788139941,10.86725122,145.28,145.24,10.86725122]
[1750788140260,15.97619831,145.27,145.22,12.37495122]
[1750788140447,5.10894709,145.26,145.22,12.37495122]
[1750788140822,10.86725122,145.25,145.18,1.5105]
[1750788141041,15.97619831,145.24,145.19,10.86725122]
[1750788141258,10.86725122,145.24,145.19,10.86725122]
[1750788141548,0.68861038,145.22,145.19,10.86725122]
[1750788141754,0.68861038,145.22,145.18,1.5105]
[1750788142054,2.41013634,145.22,145.18,12.37775122]
[1750788142257,7.51908343,145.22,145.18,12.37775122]
[1750788142439,7.51908343,145.22,145.19,10.86725122]
[1750788142842,7.51908343,145.22,145.18,1.5105]
[1750788142843,7.51908343,145.22,145.18,12.37775122]
[1750788143145,0.68870523,145.2,145.18,10.86725122]
[1750788143442,0.68870523,145.2,145.19,10.86725122]
[1750788144054,2.41046831,145.2,145.16,10.86725122]
[1750788144428,10.86725122,145.19,145.14,12.40915122]
[1750788144754,15.97619831,145.19,145.14,10.86725122]
[1750788145264,2.41080038,145.18,145.14,10.86725122]
[1750788145628,0.68880011,145.18,145.17,10.86725122]
[1750788145946,0.68880011,145.18,145.12,32.5299]
[1750788146140,0.68880011,145.18,145.16,10.86725122]
[1750788146342,0.68880011,145.18,145.17,10.86725122]
[1750788147857,2.41063433,145.19,145.16,10.86725122]
[1750788148031,2.41063433,145.19,145.15,10.86725122]
[1750788148232,13.27788555,145.19,145.14,10.86725122]
[1750788148452,18.38683264,145.19,145.14,10.86725122]
[1750788148630,13.27788555,145.19,145.1,1.6602]
[1750788148958,13.27788555,145.19,145.08,6.1981]
[1750788148959,10.86725122,145.14,145.08,6.1981]
[1750788149252,17.54725122,145.14,145.09,10.86725122]
[1750788149452,6.68,145.14,145.11,10.86725122]
[1750788149642,6.68,145.14,145.1,10.86725122]
[1750788149835,11.55628863,145.13,145.09,10.86725122]
[1750788150036,10.86725122,145.12,145.08,10.86725122]
[1750788150235,10.86725122,145.12,145.07,10.86725122]
[1750788150438,10.86725122,145.11,145.07,10.86725122]
[1750788150959,10.86725122,145.1,145.06,10.86725122]
[1750788152060,0.68922737,145.09,145.06,10.86725122]
[1750788153762,0.68922737,145.09,145.07,10.86725122]
[1750788154351,0.68917987,145.1,145.07,10.86725122]
[1750788156167,2.41212955,145.1,145.07,10.86725122]
[1750788157571,0.68908489,145.12,145.09,10.86725122]
[1750788157974,2.41179712,145.12,145.09,10.86725122]
[1750788158270,0.68905431,145.13,145.11,10.86725122]
[1750788158669,7.36901014,145.14,145.12,10.86725122]
[1750788158849,7.36901014,145.14,145.13,10.86725122]
[1750788160260,7.36901014,145.14,145.12,10.86725122]
[1750788162971,7.36901014,145.14,145.13,10.86725122]
[1750788164457,6.68,145.14,145.13,10.86725122]
[1750788165176,7.36898994,145.14,145.13,10.86725122]
[1750788165369,7.36898994,145.14,145.12,10.86725122]
[1750788165948,7.36898994,145.14,145.13,10.86725122]
[1750788166348,7.36898994,145.14,145.13,6.52637112]
[1750788167678,6.68,145.14,145.13,6.52637112]
[1750788169658,0.68891143,145.16,145.13,6.52637112]
[1750788169859,0.68891143,145.16,145.15,6.52637112]
[1750788170487,0.68891143,145.16,145.14,6.52637112]
[1750788170667,0.68891143,145.16,145.13,6.52637112]
[1750788171885,8.93752008,145.16,145.12,6.52637112]
[1750788172465,8.93752008,145.16,145.11,6.52637112]
[1750788173366,8.93752008,145.16,145.12,6.52637112]
[1750788174390,2.41114896,145.16,145.12,6.52637112]
[1750788176087,2.41114896,145.16,145.13,6.52637112]